fUSD/lending_fUSD_20260517
["ID","MTS","AMOUNT","RATE_DAILY","PERIOD"]
[422499768,1779000640000,-1937.99,0.00028852,7]
[422499804,1779000640000,-433.67,0.00028979,30]
[422499737,1779000640000,-336.97,0.00028725,2]
[422499738,1779000640000,-1080.1,0.00028725,2]
[422499741,1779000640000,-337.24,0.00028725,2]
[422499740,1779000640000,-433.67,0.00028725,2]
[422499743,1779000640000,-1937.99,0.00028756,7]
[422499751,1779000640000,-1937.99,0.00028788,30]
[422499754,1779000640000,-1080.1,0.00028788,30]
[422499742,1779000640000,-1081.24,0.00028725,2]
[422499752,1779000640000,-434.1,0.00028788,30]
[422499753,1779000640000,-336.97,0.00028788,30]
[422499745,1779000640000,-336.97,0.00028756,7]
[422499744,1779000640000,-434.1,0.00028756,7]
[422499747,1779000640000,-1927.41,0.00028756,7]
[422499749,1779000640000,-337.24,0.00028756,7]
[422499750,1779000640000,-1081.24,0.00028756,7]
[422499748,1779000640000,-433.67,0.00028756,7]
[422499755,1779000640000,-1927.41,0.00028788,30]
[422499759,1779000640000,-434.1,0.0002882,2]
[422499758,1779000640000,-1937.99,0.0002882,2]
[422499757,1779000640000,-337.24,0.00028788,30]
[422499756,1779000640000,-433.67,0.00028788,30]
[422499760,1779000640000,-336.97,0.0002882,2]
[422499761,1779000640000,-1080.1,0.0002882,2]
[422499763,1779000640000,-1927.41,0.0002882,2]
[422499764,1779000640000,-433.67,0.0002882,2]
[422499766,1779000640000,-337.24,0.0002882,2]
[422499769,1779000640000,-434.1,0.00028852,7]
[422499739,1779000640000,-1927.41,0.00028725,2]
[422499801,1779000640000,-336.97,0.00028979,30]
[422499802,1779000640000,-1080.1,0.00028979,30]
[422499836,1779000640000,-433.67,0.00029105,2]
[422499842,1779000640000,-1927.41,0.00029137,7]
[422499838,1779000640000,-1937.99,0.00029137,7]
[422499841,1779000640000,-1080.1,0.00029137,7]
[422499840,1779000640000,-336.97,0.00029137,7]
[422499837,1779000640000,-337.24,0.00029105,2]
[422499832,1779000640000,-434.1,0.00029105,2]
[422499834,1779000640000,-1080.1,0.00029105,2]
[422499839,1779000640000,-434.1,0.00029137,7]
[422499844,1779000640000,-337.24,0.00029137,7]
[422499849,1779000640000,-1927.41,0.00029169,30]
[422499846,1779000640000,-434.1,0.00029169,30]
[422499843,1779000640000,-433.67,0.00029137,7]
[422499845,1779000640000,-1937.99,0.00029169,30]
[422499848,1779000640000,-1080.1,0.00029169,30]
[422499847,1779000640000,-336.97,0.00029169,30]
[422499850,1779000640000,-433.67,0.00029169,30]
[422499852,1779000640000,-215.0785988,0.000292,7]
[422499853,1779000640000,-1937.99,0.00029201,2]
[422499851,1779000640000,-337.24,0.00029169,30]
[422499855,1779000640000,-336.97,0.00029201,2]
[422499857,1779000640000,-1927.41,0.00029201,2]
[422499858,1779000640000,-433.67,0.00029201,2]
[422499860,1779000640000,-1938.18,0.00029232,7]
[422499859,1779000640000,-337.24,0.00029201,2]
[422499856,1779000640000,-1080.1,0.00029201,2]
[422499798,1779000640000,-283.79,0.00028963,2]
[422499835,1779000640000,-1927.41,0.00029105,2]
[422499833,1779000640000,-336.97,0.00029105,2]
[422499854,1779000640000,-434.1,0.00029201,2]
[422499826,1779000640000,-1927.41,0.00029074,30]
[422499828,1779000640000,-337.24,0.00029074,30]
[422499807,1779000640000,-10120.38554326,0.00029,2]
[422499800,1779000640000,-434.1,0.00028979,30]
[422499803,1779000640000,-1927.41,0.00028979,30]
[422499805,1779000640000,-337.24,0.00028979,30]
[422499809,1779000640000,-434.1,0.0002901,2]
[422499819,1779000640000,-1927.41,0.00029042,7]
[422499808,1779000640000,-1937.99,0.0002901,2]
[422499818,1779000640000,-1080.1,0.00029042,7]
[422499811,1779000640000,-1080.1,0.0002901,2]
[422499815,1779000640000,-1937.99,0.00029042,7]
[422499817,1779000640000,-336.97,0.00029042,7]
[422499812,1779000640000,-1927.41,0.0002901,2]
[422499810,1779000640000,-336.97,0.0002901,2]
[422499799,1779000640000,-1937.99,0.00028979,30]
[422499827,1779000640000,-433.67,0.00029074,30]
[422499813,1779000640000,-433.67,0.0002901,2]
[422499814,1779000640000,-337.24,0.0002901,2]
[422499831,1779000640000,-1937.99,0.00029105,2]
[422499821,1779000640000,-337.24,0.00029042,7]
[422499823,1779000640000,-434.1,0.00029074,30]
[422499822,1779000640000,-1937.99,0.00029074,30]
[422499820,1779000640000,-433.67,0.00029042,7]
[422499824,1779000640000,-336.97,0.00029074,30]
[422499816,1779000640000,-434.1,0.00029042,7]
[422499830,1779000640000,-312.52,0.000291,7]
[422499829,1779000640000,-2038.08,0.000291,14]
[422499825,1779000640000,-1080.1,0.00029074,30]
[422499902,1779000641000,-283.79,0.00030137,2]
[422499906,1779000641000,-1011.89,0.00030173,30]
[422499896,1779000641000,-1011.89,0.00030107,30]
[422499905,1779000641000,-1011.89,0.0003016,30]
[422499898,1779000641000,-1011.89,0.00030133,30]
[422499899,1779000641000,-200.0,0.00030137,2]
[422499904,1779000641000,-1011.89,0.00030147,30]
[422499900,1779000641000,-348.75728933,0.00030137,2]
[422499903,1779000641000,-220.72,0.00030137,30]
[422499901,1779000641000,-348.7542965,0.00030137,30]
[422499907,1779000641000,-1011.89,0.00030187,30]
[422499909,1779000641000,-1136.704197,0.000302,2]
[422499908,1779000641000,-192.0,0.00030189,30]
[422499911,1779000641000,-155.0,0.000302,30]
[422499919,1779000641000,-570.0,0.00030208,30]
[422499912,1779000641000,-157.0,0.000302,30]
[422499914,1779000641000,-246.0,0.000302,30]
[422499920,1779000641000,-154.0,0.00030208,30]
[422499918,1779000641000,-508.0,0.00030208,30]
[422499917,1779000641000,-151.0,0.00030208,30]
[422499921,1779000641000,-154.0,0.00030208,30]
[422499915,1779000641000,-167.0,0.00030208,30]
[422499910,1779000641000,-1011.89,0.000302,30]
[422499916,1779000641000,-161.0,0.00030208,30]
[422499922,1779000641000,-151.0,0.00030239,2]
[422499934,1779000641000,-9686.68978926,0.00031099,2]
[422499924,1779000641000,-331.26817183,0.00030681,7]
[422499913,1779000641000,-154.0,0.000302,30]
[422499897,1779000641000,-1011.89,0.0003012,30]
[422499930,1779000641000,-150.0,0.00031011,2]
[422499893,1779000641000,-297.22595915,0.000301,2]
[422499862,1779000641000,-337.16,0.00029232,7]
[422499861,1779000641000,-434.13,0.00029232,7]
[422499865,1779000641000,-433.86,0.00029232,7]
[422499863,1779000641000,-1080.29,0.00029232,7]
[422499864,1779000641000,-1927.57,0.00029232,7]
[422499867,1779000641000,-348.75728933,0.00029233,2]
[422499869,1779000641000,-167.02538619,0.00029317,7]
[422499872,1779000641000,-434.5706732,0.00029367,2]
[422499876,1779000641000,-6139.1442029,0.000296,2]
[422499866,1779000641000,-337.27,0.00029232,7]
[422499870,1779000641000,-165.63408592,0.00029317,7]
[422499873,1779000641000,-9686.68978926,0.000295,2]
[422499868,1779000641000,-6139.1442029,0.000293,2]
[422499871,1779000641000,-165.46100894,0.00029317,2]
[422499875,1779000641000,-150.0,0.00029534,2]
[422499874,1779000641000,-2493.08804053,0.00029501,2]
[422499877,1779000641000,-358.44,0.000296,7]
[422499886,1779000641000,-1011.89,0.0003004,30]
[422499891,1779000641000,-1011.89,0.0003008,30]
[422499888,1779000641000,-1011.89,0.00030053,30]
[422499884,1779000641000,-1011.89,0.00030027,30]
[422499879,1779000641000,-650.0,0.0003,2]
[422499878,1779000641000,-6139.1442029,0.000299,2]
[422499882,1779000641000,-1011.89,0.00030013,30]
[422499890,1779000641000,-1011.89,0.00030067,30]
[422499895,1779000641000,-297.22595912,0.000301,2]
[422499892,1779000641000,-1011.89,0.00030093,30]
[422499894,1779000641000,-297.22595912,0.000301,2]
[422499933,1779000641000,-200.0,0.00031096,2]
[422499880,1779000641000,-1011.89,0.0003,30]
[422499923,1779000641000,-334.05077237,0.00030681,7]
[422499959,1779000641000,-501.07615856,0.0003159,7]
[422499961,1779000641000,-496.90225775,0.0003159,7]
[422499966,1779000641000,-1600.0,0.00031754,2]
[422499969,1779000641000,-1600.0,0.00031754,2]
[422499965,1779000641000,-220.72,0.00031703,30]
[422499964,1779000641000,-348.7542965,0.00031703,30]
[422499967,1779000641000,-1600.0,0.00031754,2]
[422499962,1779000641000,-233.49402474,0.0003159,7]
[422499963,1779000641000,-496.38302682,0.0003159,2]
[422499986,1779000641000,-1544.0,0.0003182,2]
[422499968,1779000641000,-1600.0,0.00031754,2]
[422499971,1779000641000,-1600.0,0.00031754,2]
[422499973,1779000641000,-1600.0,0.00031754,2]
[422499974,1779000641000,-1600.0,0.00031754,2]
[422499972,1779000641000,-1600.0,0.00031754,2]
[422499981,1779000641000,-1800.0,0.0003182,2]
[422499982,1779000641000,-1800.0,0.0003182,2]
[422499975,1779000641000,-1550.0,0.00031754,2]
[422499979,1779000641000,-1800.0,0.0003182,2]
[422499976,1779000641000,-358.44,0.000318,7]
[422499980,1779000641000,-1800.0,0.0003182,2]
[422499977,1779000641000,-1800.0,0.0003182,2]
[422499978,1779000641000,-1800.0,0.0003182,2]
[422499984,1779000641000,-1800.0,0.0003182,2]
[422499983,1779000641000,-1800.0,0.0003182,2]
[422499985,1779000641000,-1800.0,0.0003182,2]
[422499987,1779000641000,-400.0,0.00031834,2]
[422499970,1779000641000,-1600.0,0.00031754,2]
[422499960,1779000641000,-244.98196381,0.0003159,7]
[422499926,1779000641000,-1377.06946853,0.0003077,2]
[422499951,1779000641000,-1350.0,0.00031361,2]
[422499925,1779000641000,-330.92201788,0.00030681,2]
[422499927,1779000641000,-2000.0,0.00030876,120]
[422499929,1779000641000,-220.72,0.0003092,30]
[422499931,1779000641000,-150.0,0.00031023,2]
[422499932,1779000641000,-208.20981124,0.00031023,2]
[422499928,1779000641000,-348.7542965,0.0003092,30]
[422499937,1779000641000,-2493.08804053,0.00031101,2]
[422499958,1779000641000,-1000.0,0.000315,7]
[422499935,1779000641000,-2038.08,0.000311,14]
[422499936,1779000641000,-312.52,0.000311,7]
[422499939,1779000641000,-155.0,0.000312,30]
[422499941,1779000641000,-154.0,0.000312,30]
[422499942,1779000641000,-246.0,0.000312,30]
[422499945,1779000641000,-151.0,0.00031208,30]
[422499938,1779000641000,-192.0,0.00031189,30]
[422499940,1779000641000,-164.09786306,0.000312,30]
[422499944,1779000641000,-161.0,0.00031208,30]
[422499953,1779000641000,-1350.0,0.00031361,2]
[422499956,1779000641000,-1350.0,0.00031361,2]
[422499955,1779000641000,-1350.0,0.00031361,2]
[422499952,1779000641000,-1350.0,0.00031361,2]
[422499954,1779000641000,-1350.0,0.00031361,2]
[422499950,1779000641000,-1350.0,0.00031361,2]
[422499948,1779000641000,-154.0,0.00031208,30]
[422499949,1779000641000,-1350.0,0.00031361,2]
[422499947,1779000641000,-570.0,0.00031208,30]
[422499943,1779000641000,-167.0,0.00031208,30]
[422499946,1779000641000,-508.0,0.00031208,30]
[422499957,1779000641000,-1000.0,0.00031462,2]
[422500028,1779000642000,-2000.0,0.00032417,2]
[422500029,1779000642000,-2000.0,0.00032417,2]
[422500026,1779000642000,-2000.0,0.00032417,2]
[422500025,1779000642000,-151.0,0.0003221,5]
[422500024,1779000642000,-570.0,0.00032208,30]
[422500022,1779000642000,-151.0,0.00032208,30]
[422500023,1779000642000,-508.0,0.00032208,30]
[422500021,1779000642000,-161.0,0.00032208,30]
[422500030,1779000642000,-2000.0,0.00032417,2]
[422500027,1779000642000,-2000.0,0.00032417,2]
[422500020,1779000642000,-167.0,0.00032208,30]
[422500019,1779000642000,-246.0,0.000322,30]
[422500032,1779000642000,-2000.0,0.00032417,2]
[422500046,1779000642000,-229.0,0.00032537,2]
[422500031,1779000642000,-2000.0,0.00032417,2]
[422500033,1779000642000,-2000.0,0.00032417,2]
[422500034,1779000642000,-2000.0,0.00032417,2]
[422500036,1779000642000,-348.7542965,0.00032485,30]
[422500037,1779000642000,-220.71999999,0.00032485,30]
[422500038,1779000642000,-434.5706732,0.000325,2]
[422500035,1779000642000,-2000.0,0.00032417,2]
[422500041,1779000642000,-150.0,0.00032537,2]
[422500039,1779000642000,-150.0,0.00032537,2]
[422500040,1779000642000,-150.0,0.00032537,2]
[422500045,1779000642000,-150.0,0.00032537,2]
[422500043,1779000642000,-150.0,0.00032537,2]
[422500015,1779000642000,-154.87773077,0.00032196,7]
[422500042,1779000642000,-150.0,0.00032537,2]
[422500017,1779000642000,-155.0,0.000322,30]
[422500001,1779000642000,-238.86286854,0.00032196,7]
[422500009,1779000642000,-150.73283595,0.00032196,7]
[422500047,1779000642000,-150.0,0.00032562,2]
[422499994,1779000642000,-400.0,0.00031834,2]
[422499988,1779000642000,-400.0,0.00031834,2]
[422499993,1779000642000,-400.0,0.00031834,2]
[422499990,1779000642000,-400.0,0.00031834,2]
[422499992,1779000642000,-400.0,0.00031834,2]
[422499989,1779000642000,-400.0,0.00031834,2]
[422499991,1779000642000,-400.0,0.00031834,2]
[422499997,1779000642000,-500.0,0.00032082,2]
[422499998,1779000642000,-192.0,0.00032189,30]
[422499995,1779000642000,-340.0,0.00031834,2]
[422500005,1779000642000,-662.53634367,0.00032196,7]
[422500000,1779000642000,-238.54219269,0.00032196,7]
[422500006,1779000642000,-197.06202857,0.00032196,7]
[422500002,1779000642000,-668.10154475,0.00032196,7]
[422499999,1779000642000,-208.97254081,0.00032196,2]
[422500003,1779000642000,-200.60881026,0.00032196,7]
[422499996,1779000642000,-200.0,0.00032055,2]
[422500004,1779000642000,-489.96392762,0.00032196,7]
[422500008,1779000642000,-153.76629583,0.00032196,7]
[422500018,1779000642000,-154.0,0.000322,30]
[422500007,1779000642000,-195.56434176,0.00032196,7]
[422500014,1779000642000,-466.98804949,0.00032196,7]
[422500010,1779000642000,-217.7500884,0.00032196,7]
[422500012,1779000642000,-197.4335286,0.00032196,7]
[422500011,1779000642000,-661.84403576,0.00032196,2]
[422500013,1779000642000,-234.68265056,0.00032196,7]
[422500016,1779000642000,-156.227361,0.00032196,7]
[422500044,1779000642000,-150.0,0.00032537,2]
[422500048,1779000642000,-9686.68978926,0.00032699,2]
[422500094,1779000642000,-167.0,0.00034208,30]
[422500085,1779000642000,-265.0,0.00034051,30]
[422500083,1779000642000,-150.0,0.00034051,30]
[422500092,1779000642000,-164.0,0.000342,30]
[422500084,1779000642000,-150.0,0.00034051,30]
[422500093,1779000642000,-246.0,0.000342,30]
[422500088,1779000642000,-151.0,0.00034182,7]
[422500087,1779000642000,-220.71999999,0.00034051,30]
[422500086,1779000642000,-348.7542965,0.00034051,30]
[422500090,1779000642000,-192.0,0.00034189,30]
[422500091,1779000642000,-150.0,0.0003419,2]
[422500089,1779000642000,-311.09611289,0.00034183,30]
[422500096,1779000642000,-508.0,0.00034208,30]
[422500097,1779000642000,-570.0,0.00034208,30]
[422500098,1779000642000,-1362.252,0.00034223,2]
[422500100,1779000642000,-3543.0,0.00034223,2]
[422500102,1779000642000,-1270.0,0.00034223,2]
[422500099,1779000642000,-935.097,0.00034223,2]
[422500104,1779000642000,-1223.0,0.00034223,2]
[422500095,1779000642000,-151.0,0.00034208,30]
[422500105,1779000642000,-930.0,0.00034223,2]
[422500103,1779000642000,-150.159,0.00034223,2]
[422500101,1779000642000,-625.0,0.00034223,2]
[422500107,1779000642000,-9686.68978926,0.00034299,2]
[422500106,1779000642000,-3632.0,0.00034223,2]
[422500108,1779000642000,-2493.08804053,0.00034302,2]
[422500050,1779000642000,-828.17042959,0.00032803,7]
[422500109,1779000642000,-150.0,0.00034331,60]
[422500081,1779000642000,-358.44,0.000338,7]
[422500080,1779000642000,-993.8045155,0.00033712,7]
[422500082,1779000642000,-350.0,0.00033973,5]
[422500077,1779000642000,-150.0,0.00033683,120]
[422500052,1779000642000,-835.12693093,0.00032803,7]
[422500053,1779000642000,-193.45,0.00032812,2]
[422500049,1779000642000,-2493.08804053,0.00032701,2]
[422500051,1779000642000,-827.3050447,0.00032803,2]
[422500055,1779000642000,-1000.0,0.0003311,34]
[422500066,1779000642000,-151.0,0.00033208,30]
[422500065,1779000642000,-166.78813989,0.00033208,30]
[422500057,1779000642000,-2595.203,0.00033129,34]
[422500058,1779000642000,-174.905,0.00033129,34]
[422500078,1779000642000,-169.0,0.00033683,120]
[422500059,1779000642000,-192.0,0.00033189,30]
[422500056,1779000642000,-178.62,0.00033122,120]
[422500060,1779000642000,-2038.08,0.000332,14]
[422500061,1779000642000,-312.52,0.000332,30]
[422500064,1779000642000,-167.0,0.00033208,30]
[422500054,1779000642000,-350.0,0.00033014,5]
[422500073,1779000642000,-507.49986348,0.00033323,2]
[422500074,1779000642000,-1511.87138177,0.00033323,2]
[422500063,1779000642000,-246.0,0.000332,30]
[422500072,1779000642000,-500.0,0.00033315,2]
[422500075,1779000642000,-5296.35593302,0.00033323,2]
[422500079,1779000642000,-2000.0,0.00033683,120]
[422500076,1779000642000,-1377.06946853,0.00033326,2]
[422500070,1779000642000,-220.71999999,0.00033268,30]
[422500069,1779000642000,-348.7542965,0.00033268,30]
[422500071,1779000642000,-1000.0,0.00033286,17]
[422500067,1779000642000,-508.0,0.00033208,30]
[422500062,1779000642000,-155.0,0.000332,30]
[422500068,1779000642000,-570.0,0.00033208,30]
[422500154,1779000643000,-450.0,0.00034834,30]
[422500152,1779000643000,-450.0,0.00034834,30]
[422500153,1779000643000,-450.0,0.00034834,30]
[422500150,1779000643000,-450.0,0.00034834,30]
[422500156,1779000643000,-348.7542965,0.00034834,30]
[422500151,1779000643000,-450.0,0.00034834,30]
[422500134,1779000643000,-1050.0,0.00034367,5]
[422500149,1779000643000,-530.0,0.00034834,30]
[422500148,1779000643000,-600.0,0.00034834,30]
[422500146,1779000643000,-600.0,0.00034834,30]
[422500141,1779000643000,-150.0,0.00034834,30]
[422500158,1779000643000,-160.84,0.00034924,30]
[422500147,1779000643000,-600.0,0.00034834,30]
[422500155,1779000643000,-248.0,0.00034834,30]
[422500170,1779000643000,-550.0,0.00034924,30]
[422500157,1779000643000,-220.71999999,0.00034834,30]
[422500171,1779000643000,-550.0,0.00034924,30]
[422500160,1779000643000,-169.0,0.00034924,30]
[422500161,1779000643000,-600.0,0.00034924,30]
[422500164,1779000643000,-600.0,0.00034924,30]
[422500172,1779000643000,-344.0,0.00034924,30]
[422500163,1779000643000,-600.0,0.00034924,30]
[422500162,1779000643000,-600.0,0.00034924,30]
[422500165,1779000643000,-600.0,0.00034924,30]
[422500167,1779000643000,-3000.0,0.00034924,30]
[422500168,1779000643000,-2861.0,0.00034924,30]
[422500169,1779000643000,-550.0,0.00034924,30]
[422500166,1779000643000,-526.0,0.00034924,30]
[422500140,1779000643000,-150.0,0.00034834,30]
[422500159,1779000643000,-150.0,0.00034924,30]
[422500136,1779000643000,-622.19222578,0.00034672,30]
[422500118,1779000643000,-1050.0,0.00034333,60]
[422500133,1779000643000,-247.66941604,0.00034343,3]
[422500117,1779000643000,-1050.0,0.00034333,60]
[422500110,1779000643000,-210.0,0.00034331,60]
[422500111,1779000643000,-250.0,0.00034331,60]
[422500116,1779000643000,-209.0,0.00034333,60]
[422500115,1779000643000,-350.0,0.00034333,60]
[422500112,1779000643000,-250.0,0.00034331,60]
[422500114,1779000643000,-350.0,0.00034333,60]
[422500119,1779000643000,-994.0,0.00034333,60]
[422500120,1779000643000,-500.0,0.00034333,60]
[422500123,1779000643000,-500.0,0.00034342,60]
[422500130,1779000643000,-170.97050131,0.00034343,3]
[422500121,1779000643000,-500.0,0.00034333,60]
[422500122,1779000643000,-489.0,0.00034333,60]
[422500138,1779000643000,-2073.97408594,0.0003474,2]
[422500129,1779000643000,-768.799373,0.00034342,60]
[422500128,1779000643000,-500.0,0.00034342,60]
[422500126,1779000643000,-500.0,0.00034342,60]
[422500125,1779000643000,-500.0,0.00034342,60]
[422500124,1779000643000,-500.0,0.00034342,60]
[422500132,1779000643000,-186.91735401,0.00034343,3]
[422500135,1779000643000,-839.0,0.00034367,5]
[422500143,1779000643000,-295.0,0.00034834,30]
[422500137,1779000643000,-518.49352148,0.0003474,2]
[422500139,1779000643000,-1500.0,0.00034795,2]
[422500144,1779000643000,-600.0,0.00034834,30]
[422500145,1779000643000,-600.0,0.00034834,30]
[422500142,1779000643000,-150.0,0.00034834,30]
[422500131,1779000643000,-183.88200522,0.00034343,3]
[422500127,1779000643000,-500.0,0.00034342,60]
[422500180,1779000643000,-508.0,0.00035208,30]
[422500113,1779000643000,-243.0,0.00034331,60]
[422500184,1779000643000,-3000.0,0.00035208,30]
[422500207,1779000643000,-1000.79945946,0.00036,2]
[422500212,1779000643000,-550.0,0.00036153,30]
[422500222,1779000643000,-570.0,0.00036208,30]
[422500223,1779000643000,-622.19222578,0.00036278,30]
[422500211,1779000643000,-550.0,0.00036153,30]
[422500213,1779000643000,-315.0,0.00036153,30]
[422500214,1779000643000,-151.0,0.00036153,30]
[422500215,1779000643000,-238.0,0.00036164,2]
[422500216,1779000643000,-596.0,0.00036164,2]
[422500217,1779000643000,-192.0,0.00036189,30]
[422500220,1779000643000,-151.0,0.00036208,30]
[422500218,1779000643000,-246.0,0.000362,30]
[422500221,1779000643000,-508.0,0.00036208,30]
[422500219,1779000643000,-167.0,0.00036208,30]
[422500224,1779000643000,-5621.2885,0.00036305,2]
[422500228,1779000643000,-300.0,0.0003636,2]
[422500227,1779000643000,-300.0,0.0003636,2]
[422500229,1779000643000,-300.0,0.0003636,2]
[422500226,1779000643000,-512.398822,0.00036359,120]
[422500230,1779000643000,-484.30212364,0.0003636,2]
[422500232,1779000643000,-300.0,0.0003636,2]
[422500233,1779000643000,-300.0,0.0003636,2]
[422500234,1779000643000,-551.85366969,0.0003636,2]
[422500235,1779000643000,-300.0,0.0003636,2]
[422500231,1779000643000,-309.96996065,0.0003636,2]
[422500225,1779000643000,-2749.4486,0.00036305,2]
[422500238,1779000643000,-300.0,0.0003636,2]
[422500237,1779000643000,-300.0,0.0003636,2]
[422500183,1779000643000,-3000.0,0.00035208,30]
[422500206,1779000643000,-301.0,0.00035981,2]
[422500209,1779000643000,-550.0,0.00036153,30]
[422500236,1779000643000,-300.0,0.0003636,2]
[422500205,1779000643000,-311.09611289,0.00035911,30]
[422500208,1779000643000,-2273.0,0.00036153,30]
[422500185,1779000643000,-3000.0,0.00035208,30]
[422500186,1779000643000,-3000.0,0.00035208,30]
[422500178,1779000643000,-167.0,0.00035208,30]
[422500175,1779000643000,-192.0,0.00035189,30]
[422500174,1779000643000,-1159.43860142,0.00035076,7]
[422500176,1779000643000,-1500.0,0.000352,7]
[422500181,1779000643000,-570.0,0.00035208,30]
[422500177,1779000643000,-246.0,0.000352,30]
[422500182,1779000643000,-3000.0,0.00035208,30]
[422500179,1779000643000,-151.0,0.00035208,30]
[422500198,1779000643000,-434.5706732,0.00035633,2]
[422500188,1779000643000,-800.0,0.00035616,60]
[422500187,1779000643000,-3000.0,0.00035208,30]
[422500190,1779000643000,-764.0,0.00035616,60]
[422500173,1779000643000,-350.0,0.00034931,5]
[422500192,1779000643000,-5000.0,0.00035616,60]
[422500189,1779000643000,-800.0,0.00035616,60]
[422500202,1779000643000,-150.0,0.00035899,2]
[422500204,1779000643000,-2493.08804053,0.00035902,2]
[422500201,1779000643000,-350.0,0.0003589,5]
[422500203,1779000643000,-9686.68978926,0.00035899,2]
[422500199,1779000643000,-358.44,0.000357,7]
[422500200,1779000643000,-1377.06946853,0.00035883,2]
[422500195,1779000643000,-220.71999999,0.00035616,30]
[422500191,1779000643000,-5000.0,0.00035616,60]
[422500197,1779000643000,-1000.0,0.00035617,8]
[422500196,1779000643000,-168.17,0.00035616,60]
[422500210,1779000643000,-550.0,0.00036153,30]
[422500194,1779000643000,-1266.1,0.00035616,60]
[422500193,1779000643000,-5000.0,0.00035616,60]
[422500303,1779000644000,-864.84573435,0.0003636,2]
[422500271,1779000644000,-300.0,0.0003636,2]
[422500280,1779000644000,-300.0,0.0003636,2]
[422500273,1779000644000,-300.0,0.0003636,2]
[422500284,1779000644000,-300.0,0.0003636,2]
[422500286,1779000644000,-949.41386656,0.0003636,2]
[422500298,1779000644000,-300.0,0.0003636,2]
[422500302,1779000644000,-300.0,0.0003636,2]
[422500301,1779000644000,-309.72976467,0.0003636,2]
[422500288,1779000644000,-300.0,0.0003636,2]
[422500270,1779000644000,-301.92446648,0.0003636,2]
[422500282,1779000644000,-300.0,0.0003636,2]
[422500304,1779000644000,-300.0,0.0003636,2]
[422500299,1779000644000,-300.0,0.0003636,2]
[422500290,1779000644000,-1913.25849317,0.0003636,2]
[422500294,1779000644000,-344.12979214,0.0003636,2]
[422500292,1779000644000,-300.0,0.0003636,2]
[422500296,1779000644000,-527.12281632,0.0003636,2]
[422500305,1779000644000,-1791.55036629,0.0003636,2]
[422500318,1779000644000,-300.0,0.0003636,2]
[422500308,1779000644000,-311.04198967,0.0003636,2]
[422500306,1779000644000,-300.0,0.0003636,2]
[422500312,1779000644000,-300.0,0.0003636,2]
[422500310,1779000644000,-300.0,0.0003636,2]
[422500268,1779000644000,-300.0,0.0003636,2]
[422500307,1779000644000,-300.0,0.0003636,2]
[422500300,1779000644000,-1147.71030809,0.0003636,2]
[422500265,1779000644000,-893.8052833,0.0003636,2]
[422500254,1779000644000,-492.91797782,0.0003636,2]
[422500279,1779000644000,-300.0,0.0003636,2]
[422500315,1779000644000,-577.47815809,0.0003636,2]
[422500249,1779000644000,-300.0,0.0003636,2]
[422500239,1779000644000,-1095.24427681,0.0003636,2]
[422500240,1779000644000,-300.0,0.0003636,2]
[422500243,1779000644000,-300.0,0.0003636,2]
[422500242,1779000644000,-300.0,0.0003636,2]